bitfinex/quotes_SOLUSD_20240621
["timestamp","ask_amount","ask_price","bid_price","bid_amount"]
[1718948581498,9.48,133.11,133.03,62.5741]
[1718948581715,9.48,133.11,133.05,9.48]
[1718948582530,6.0948,133.12,133.06,20.0]
[1718948583017,9.48,133.1,133.06,20.0]
[1718948583716,9.48,133.11,133.06,20.0]
[1718948583926,9.48,133.1,133.06,20.0]
[1718948584230,16.183,133.08,133.06,20.0]
[1718948584519,16.183,133.08,133.03,9.48]
[1718948584827,16.183,133.08,133.04,20.0]
[1718948585030,22.2778,133.12,133.06,9.48]
[1718948585225,9.48,133.11,133.07,20.0]
[1718948587322,22.2778,133.12,133.07,20.0]
[1718948587621,31.7578,133.12,133.07,29.48]
[1718948588744,9.48,133.11,133.06,20.0]
[1718948589104,22.2778,133.12,133.06,29.48]
[1718948589308,31.7578,133.12,133.07,9.48]
[1718948589507,31.7578,133.12,133.08,20.0]
[1718948591009,31.7578,133.12,133.07,20.0]
[1718948591411,22.2778,133.12,133.07,20.0]
[1718948591612,31.7578,133.12,133.07,20.0]
[1718948596824,22.2778,133.12,133.08,9.65]
[1718948597034,16.183,133.12,133.09,20.0]
[1718948601071,16.183,133.12,133.09,29.48]
[1718948601942,16.183,133.12,133.09,20.0]
[1718948602341,9.48,133.11,133.09,20.0]
[1718948602642,9.48,133.11,133.07,20.0]
[1718948604322,16.183,133.12,133.07,20.0]
[1718948604535,25.663,133.12,133.07,20.0]
[1718948608322,16.183,133.12,133.07,20.0]
[1718948608593,9.48,133.1,133.07,20.0]
[1718948608854,9.48,133.09,133.04,9.48]
[1718948609040,9.48,133.09,133.05,20.0]
[1718948609528,9.48,133.1,133.05,20.0]
[1718948610134,9.48,133.1,133.05,29.48]
[1718948610849,6.1109,133.11,133.06,9.99]
[1718948610850,15.5909,133.11,133.06,9.99]
[1718948611144,9.48,133.1,133.07,20.0]
[1718948611343,9.48,133.1,133.05,29.48]
[1718948611855,6.1109,133.11,133.05,20.0]
[1718948611856,9.48,133.09,133.05,20.0]
[1718948612057,9.48,133.08,133.05,20.0]
[1718948612232,9.48,133.08,133.03,9.48]
[1718948612432,9.48,133.09,133.04,20.0]
[1718948612655,9.48,133.09,133.04,29.48]
[1718948613744,9.48,133.1,133.04,29.48]
[1718948614348,9.48,133.1,133.05,9.48]
[1718948614659,6.1109,133.11,133.06,20.0]
[1718948614855,15.5909,133.11,133.06,20.0]
[1718948616561,15.5909,133.11,133.06,29.48]
[1718948621741,6.1109,133.11,133.06,29.48]
[1718948622168,15.5909,133.11,133.06,29.48]
[1718948624650,6.1109,133.11,133.06,20.0]
[1718948624843,9.48,133.1,133.05,20.0]
[1718948625054,9.48,133.1,133.04,9.48]
[1718948625255,9.48,133.1,133.05,20.0]
[1718948625656,9.48,133.09,133.05,20.0]
[1718948626169,6.1109,133.11,133.05,29.48]
[1718948626475,16.183,133.12,133.07,9.48]
[1718948626849,25.663,133.12,133.07,9.48]
[1718948627669,25.663,133.12,133.06,9.48]
[1718948627853,25.663,133.12,133.07,20.0]
[1718948628356,25.663,133.12,133.07,29.48]
[1718948631576,6.2882,133.14,133.08,9.48]
[1718948631577,15.7682,133.14,133.08,9.48]
[1718948631775,15.7682,133.14,133.09,20.0]
[1718948632079,15.7682,133.14,133.09,29.48]
[1718948632254,6.2882,133.14,133.09,29.48]
[1718948632456,15.7682,133.14,133.09,29.48]
[1718948639291,9.48,133.13,133.09,20.0]
[1718948639477,9.48,133.12,133.09,20.0]
[1718948639683,9.48,133.12,133.06,29.48]
[1718948641582,9.48,133.09,133.06,20.0]
[1718948641887,9.48,133.09,133.03,29.48]
[1718948642308,9.48,133.08,133.03,20.0]
[1718948642471,15.813,133.13,133.03,20.0]
[1718948642472,9.48,133.07,133.03,20.0]
[1718948642667,9.48,133.07,133.02,20.0]
[1718948642878,9.48,133.07,133.01,9.48]
[1718948643090,9.48,133.07,133.02,20.0]
[1718948643464,9.48,133.06,133.02,20.0]
[1718948644063,9.48,133.06,133.01,9.48]
[1718948644260,9.48,133.06,133.02,20.0]
[1718948644697,9.48,133.07,133.02,20.0]
[1718948647080,9.48,133.07,133.01,9.48]
[1718948647400,9.48,133.07,133.02,20.0]
[1718948648996,9.48,133.07,133.01,9.48]
[1718948649296,9.48,133.06,133.02,20.0]
[1718948650466,9.48,133.06,133.0,29.48]
[1718948650676,9.48,133.05,133.0,29.48]
[1718948653486,9.48,133.05,133.0,20.0]
[1718948653671,9.48,133.04,132.97,20.0]
[1718948653875,9.48,133.03,132.98,9.48]
[1718948654177,9.48,133.02,132.99,20.0]
[1718948654389,9.48,133.02,132.97,29.48]
[1718948654578,9.48,133.02,132.97,20.0]
[1718948654990,9.48,133.02,132.97,29.48]
[1718948655506,9.48,133.02,132.97,20.0]
[1718948655693,9.48,133.02,132.97,29.48]
[1718948656301,15.7418,133.04,132.97,20.0]
[1718948656503,9.48,133.0,132.97,20.0]
[1718948656814,9.48,133.0,132.94,9.48]
[1718948656982,9.48,132.99,132.92,11.125]
[1718948657179,9.48,132.99,132.94,9.48]
[1718948657704,9.48,133.0,132.94,9.48]
[1718948658110,9.48,133.0,132.95,20.0]
[1718948658602,9.48,133.0,132.94,9.48]
[1718948658776,9.48,133.0,132.95,20.0]
[1718948659404,9.48,133.0,132.94,9.48]
[1718948659612,9.48,132.99,132.95,20.0]
[1718948659904,9.48,133.0,132.95,20.0]
[1718948661152,6.0805,133.02,132.95,20.0]
[1718948661294,9.48,133.0,132.95,20.0]
[1718948663083,9.48,133.0,132.95,29.48]
[1718948663711,25.2218,133.04,132.98,9.48]
[1718948663881,25.2218,133.04,132.99,20.0]
[1718948664081,9.48,133.03,132.99,20.0]
[1718948664481,9.48,133.03,132.98,20.0]
[1718948667713,9.48,133.02,132.96,0.34]
[1718948667886,9.48,133.02,132.97,9.48]
[1718948668086,9.48,133.02,132.98,20.0]
[1718948671608,9.48,133.01,132.98,20.0]
[1718948671809,9.48,133.01,132.97,20.0]
[1718948675306,9.48,133.01,132.95,0.51]
[1718948675502,9.48,133.02,132.95,0.51]
[1718948675709,25.2218,133.04,132.99,9.48]
[1718948676020,25.2218,133.04,133.0,20.0]
[1718948676223,15.7418,133.04,133.0,20.0]
[1718948676405,25.2218,133.04,133.0,20.0]
[1718948678133,15.7418,133.04,133.0,20.0]
[1718948678644,15.7418,133.04,133.01,1.40346876]
[1718948678805,15.7418,133.04,133.0,29.48]
[1718948679130,15.7418,133.04,133.0,20.0]
[1718948682414,9.48,133.03,133.0,20.0]
[1718948682611,9.48,133.03,132.98,20.0]
[1718948683017,9.48,133.01,132.98,20.0]
[1718948683230,9.48,133.01,132.96,9.48]
[1718948683424,9.48,133.01,132.97,20.0]
[1718948685230,9.48,133.03,132.97,29.48]
[1718948685444,15.7418,133.04,132.98,9.48]
[1718948685616,15.7418,133.04,132.99,29.48]
[1718948685818,15.7418,133.04,133.0,20.0]
[1718948691748,9.48,133.05,133.0,20.0]
[1718948693034,12.72318149,133.06,133.0,20.0]
[1718948693334,9.48,133.05,133.0,20.0]
[1718948694541,9.48,133.05,132.99,9.48]
[1718948694742,9.48,133.05,133.0,20.0]
[1718948695360,9.48,133.04,133.0,20.0]
[1718948698540,9.48,133.05,133.0,20.0]
[1718948700762,9.48,133.03,133.0,20.0]
[1718948701060,9.48,133.03,132.98,9.48]
[1718948701375,13.06318149,133.06,132.99,20.0]
[1718948701538,9.48,133.04,132.99,20.0]
[1718948702452,9.48,133.03,132.97,9.48]
[1718948702758,9.48,133.03,132.98,20.0]
[1718948704157,9.48,133.03,132.98,29.48]
[1718948704533,9.48,133.03,132.98,20.0]
[1718948705137,12.72318149,133.06,132.98,31.125]
[1718948705336,15.0573,133.07,133.01,9.48]
[1718948705656,15.0573,133.07,133.02,20.0]
[1718948705657,24.5373,133.07,133.02,20.0]
[1718948705955,15.0573,133.07,133.02,20.0]
[1718948706180,24.5373,133.07,133.02,20.0]
[1718948706746,9.48,133.06,133.02,20.0]
[1718948707435,9.48,133.04,133.01,20.0]
[1718948707645,9.48,133.04,132.99,29.48]
[1718948709141,9.48,133.04,132.99,20.0]
[1718948709342,9.48,133.04,132.99,29.48]
[1718948709856,9.48,133.04,132.99,20.0]
[1718948710056,9.48,133.02,132.99,20.0]
[1718948710240,9.48,133.02,132.98,20.0]
[1718948711772,52.9773,133.07,132.98,20.0]
[1718948712059,15.0573,133.07,133.0,9.48]
[1718948712256,9.48,133.05,133.01,20.0]
[1718948712975,9.48,133.05,133.0,20.0]
[1718948713136,9.48,133.05,133.0,29.48]
[1718948714358,9.48,133.06,133.0,29.48]
[1718948714665,24.5373,133.07,133.02,9.48]
[1718948714861,6.4812,133.09,133.03,29.48]
[1718948715067,16.4961,133.11,133.06,9.48]
[1718948715249,16.4961,133.11,133.07,20.0]
[1718948717447,25.9761,133.11,133.07,20.0]
[1718948717644,12.16134081,133.13,133.07,29.48]
[1718948717851,6.0788,133.13,133.07,29.48]
[1718948718048,9.48,133.13,133.08,9.48]
[1718948718354,9.48,133.13,133.09,20.0]
[1718948719768,16.4961,133.15,133.09,20.0]
[1718948719769,9.48,133.11,133.09,20.0]
[1718948719952,9.48,133.11,133.05,29.48]
[1718948720540,9.48,133.11,133.06,9.65]
[1718948720745,9.48,133.11,133.07,20.0]
[1718948721967,22.67824306,133.15,133.06,9.65]
[1718948722162,9.48,133.11,133.07,20.0]
[1718948722364,9.48,133.11,133.06,0.17]
[1718948722764,22.67824306,133.15,133.06,9.65]
[1718948722964,22.67824306,133.15,133.07,29.48]
[1718948723156,9.48,133.13,133.08,9.48]
[1718948723357,9.48,133.13,133.09,20.0]
[1718948723868,22.67824306,133.15,133.1,9.48]
[1718948723869,25.9761,133.15,133.1,9.48]
[1718948724174,25.9761,133.15,133.11,20.0]
[1718948724769,9.48,133.15,133.11,20.0]
[1718948730595,21.4894175,133.18,133.11,20.0]
[1718948730787,9.48,133.13,133.08,9.65]
[1718948730964,9.48,133.13,133.09,20.0]
[1718948731673,9.48,133.13,133.08,20.17]
[1718948732570,9.48,133.13,133.08,9.65]
[1718948732765,9.48,133.13,133.09,20.0]
[1718948734203,9.48,133.14,133.09,20.0]
[1718948734363,9.48,133.13,133.09,20.0]
[1718948736174,9.48,133.15,133.09,20.0]
[1718948736383,21.4894175,133.18,133.11,9.48]
[1718948736710,21.4894175,133.18,133.12,20.0]
[1718948736999,9.48,133.17,133.12,20.0]
[1718948737567,15.2967,133.18,133.12,29.48]
[1718948737772,9.48,133.17,133.12,9.48]
[1718948737971,9.48,133.18,133.13,29.48]
[1718948738173,9.48,133.18,133.13,9.48]
[1718948738393,6.455,133.19,133.14,20.0]
[1718948738571,9.48,133.18,133.14,20.0]
[1718948738891,9.48,133.18,133.13,20.0]
[1718948739191,9.48,133.18,133.13,29.48]
[1718948739401,270.4035,133.21,133.14,9.48]
[1718948739574,15.3035,133.21,133.15,20.0]
[1718948739777,15.3035,133.21,133.15,29.48]
[1718948739995,21.29685719,133.21,133.15,20.0]
[1718948740199,9.48,133.2,133.15,20.0]
[1718948740405,9.48,133.18,133.15,20.0]
[1718948740706,30.77685719,133.21,133.14,20.0]
[1718948740891,9.48,133.17,133.13,20.0]
[1718948741279,9.48,133.16,133.13,20.0]
[1718948741481,9.48,133.16,133.11,9.48]
[1718948741706,9.48,133.16,133.12,20.0]
[1718948742014,59.21685719,133.21,133.12,20.0]
[1718948742312,9.48,133.17,133.12,20.0]
[1718948743205,9.48,133.17,133.11,9.48]
[1718948743412,9.48,133.17,133.12,20.0]
[1718948744694,9.48,133.17,133.12,29.48]
[1718948745787,9.48,133.17,133.12,20.0]
[1718948747500,16.0036,133.16,133.08,9.48]
[1718948747714,9.48,133.13,133.07,9.48]
[1718948748601,9.48,133.13,133.08,9.48]
[1718948748803,9.48,133.13,133.09,20.0]
[1718948749897,16.0036,133.16,133.08,29.48]
[1718948750088,9.48,133.13,133.08,29.48]
[1718948752709,16.0036,133.16,133.08,29.48]
[1718948753007,9.48,133.14,133.08,29.48]
[1718948753813,9.48,133.14,133.09,9.48]
[1718948753994,9.48,133.14,133.1,20.0]
[1718948756315,9.48,133.14,133.09,20.0]
[1718948756490,9.48,133.13,133.09,20.0]
[1718948758018,9.48,133.1,133.09,20.0]
[1718948758310,9.48,133.1,133.07,20.0]
[1718948758513,9.48,133.1,133.06,20.0]
[1718948759018,9.48,133.1,133.03,11.125]
[1718948759019,9.48,133.1,133.05,9.48]
[1718948759189,9.48,133.1,133.06,20.0]
[1718948759389,9.48,133.09,133.04,29.48]
[1718948759617,15.6966,133.11,133.04,29.48]
[1718948759910,9.48,133.09,133.04,29.48]
[1718948761912,9.48,133.1,133.04,29.48]
[1718948762118,9.48,133.1,133.05,9.48]
[1718948762300,9.48,133.1,133.06,20.0]
[1718948763216,6.4401,133.13,133.06,20.0]
[1718948763396,15.9201,133.13,133.08,9.48]
[1718948763597,15.9201,133.13,133.04,20.0]
[1718948763598,15.9201,133.13,133.09,20.0]
[1718948763915,15.9201,133.13,133.08,9.48]
[1718948764116,9.48,133.14,133.09,29.48]
[1718948764302,9.48,133.14,133.09,9.48]
[1718948764511,9.48,133.14,133.1,20.0]
[1718948764814,15.8477,133.15,133.1,20.0]
[1718948765196,6.6503,133.19,133.1,20.0]
[1718948765395,6.6503,133.19,133.08,6.2191]
[1718948765396,17.32714598,133.17,133.12,9.48]
[1718948765611,17.32714598,133.17,133.13,20.0]
[1718948766014,7.84714598,133.17,133.13,20.0]
[1718948766188,17.32714598,133.17,133.13,20.0]
[1718948766387,7.84714598,133.17,133.13,20.0]
[1718948766590,17.32714598,133.17,133.13,20.0]
[1718948766816,9.48,133.16,133.13,20.0]
[1718948767002,9.48,133.16,133.12,20.0]
[1718948767915,9.48,133.16,133.11,20.0]
[1718948768125,7.84714598,133.17,133.11,20.0]
[1718948768299,9.48,133.16,133.11,20.0]
[1718948768707,9.48,133.15,133.11,20.0]
[1718948768894,9.48,133.16,133.11,20.0]
[1718948770117,9.48,133.15,133.11,20.0]
[1718948770324,22.7585,133.14,133.06,9.48]
[1718948770527,9.48,133.11,133.07,20.0]
[1718948771521,9.48,133.1,133.05,20.0]
[1718948771821,9.48,133.1,133.05,29.48]
[1718948772912,9.48,133.1,133.05,20.0]
[1718948773220,9.48,133.1,133.05,29.48]
[1718948773421,22.7585,133.14,133.06,9.48]
[1718948773623,9.48,133.12,133.07,29.48]
[1718948773796,9.48,133.12,133.07,9.48]
[1718948774132,9.48,133.12,133.08,20.0]
[1718948774301,9.48,133.13,133.08,20.0]
[1718948774493,22.7585,133.14,133.09,9.48]
[1718948774699,22.7585,133.14,133.1,20.0]
[1718948775535,9.48,133.13,133.1,20.0]
[1718948775698,9.48,133.13,133.09,20.0]
[1718948775903,9.48,133.13,133.08,20.0]
[1718948776121,9.48,133.13,133.08,29.48]
[1718948776818,22.7585,133.14,133.08,29.48]
[1718948777120,32.2385,133.14,133.08,29.48]
[1718948777328,32.2385,133.14,133.09,9.48]
[1718948777702,22.7585,133.14,133.1,20.0]
[1718948778218,9.48,133.12,133.1,20.0]
[1718948778405,9.48,133.12,133.07,9.48]
[1718948778601,9.48,133.12,133.06,20.0]
[1718948778602,9.48,133.11,133.08,20.0]
[1718948778822,9.48,133.1,133.06,20.0]
[1718948779318,9.48,133.1,133.05,20.0]
[1718948780326,30.61792641,133.14,133.05,20.0]
[1718948780506,0.17,133.13,133.06,9.48]
[1718948780717,0.17,133.13,133.07,20.0]
[1718948780912,9.48,133.11,133.07,20.0]
[1718948781426,0.17,133.13,133.07,20.0]
[1718948781621,0.17,133.13,133.04,20.0]
[1718948781997,0.34,133.13,133.04,20.0]
[1718948782228,45.34,133.13,133.04,20.0]
[1718948782727,0.17,133.12,133.04,20.0]
[1718948784319,45.34,133.13,133.04,20.0]
[1718948785605,30.61792641,133.14,133.04,20.0]
[1718948785830,30.61792641,133.14,133.05,0.51]
[1718948787827,30.61792641,133.14,133.04,20.0]
[1718948789023,15.5998,133.13,133.04,20.0]
[1718948789216,0.34,133.12,133.03,0.34]
[1718948790341,6.0501,133.11,133.03,0.34]
[1718948790635,16.5976,133.1,133.0,20.0]
[1718948791219,6.3687,133.08,133.0,20.0]
[1718948791420,6.3687,133.08,132.98,20.0]
[1718948791614,15.6177,133.07,132.98,20.0]
[1718948792512,15.6177,133.07,132.99,0.51]
[1718948795216,44.1477,133.07,132.97,20.0]
[1718948795429,45.51,133.06,132.96,20.0]
[1718948796268,16.1909,133.04,132.96,20.0]
[1718948796423,16.1909,133.04,132.95,20.0]
[1718948798127,16.1909,133.04,132.96,0.17]
[1718948798442,16.1909,133.04,132.96,0.51]
[1718948801047,16.1909,133.04,132.96,0.34]
[1718948801345,16.1909,133.04,132.96,0.17]
[1718948802746,16.1909,133.04,132.96,0.34]
[1718948803047,16.1909,133.04,132.97,0.17]
[1718948803228,16.1909,133.04,132.96,0.34]
[1718948803423,16.1909,133.04,132.96,0.17]
[1718948803635,16.1909,133.04,132.95,20.17]
[1718948804139,16.1909,133.04,132.95,20.0]
[1718948804345,6.0368,133.03,132.93,20.0]
[1718948805959,6.0368,133.03,132.94,0.17]
[1718948806836,6.0368,133.03,132.94,0.34]
[1718948807163,6.0368,133.03,132.95,0.17]
[1718948813353,6.0368,133.03,132.95,0.34]
[1718948813652,6.0368,133.03,132.96,0.17]
[1718948813853,6.0368,133.03,132.96,0.34]
[1718948818962,6.0368,133.03,132.97,0.17]
[1718948819134,6.0368,133.03,132.97,0.34]
[1718948819544,6.0368,133.03,133.02,9.52]
[1718948819845,6.0368,133.03,133.02,29.52]
[1718948821459,6.0368,133.03,133.02,20.0]
[1718948821658,6.0368,133.03,132.98,20.17]
[1718948821962,6.0368,133.03,132.99,0.34]
[1718948822160,6.0368,133.03,133.0,0.17]
[1718948824371,16.1909,133.04,133.0,0.17]
[1718948828285,16.1909,133.04,132.98,20.0]
[1718948828286,6.6129,133.03,132.98,20.0]
[1718948828576,6.6129,133.03,132.95,48.55]
[1718948829454,6.6129,133.03,132.96,0.17]
[1718948829769,6.6129,133.03,132.96,0.51]
[1718948835470,6.6129,133.03,132.98,28.55]
[1718948835677,6.6129,133.03,132.99,20.51]
[1718948835855,6.6129,133.03,132.99,21.65659778]
[1718948836458,6.6129,133.03,133.0,1.14651156]
[1718948836662,6.6129,133.03,133.01,0.34]
[1718948838463,6.6129,133.03,133.0,0.34]
[1718948839265,6.6129,133.03,133.0,1.60241658]
[1718948841677,6.6129,133.03,133.0,0.34]
[1718948843480,6.6129,133.03,133.02,9.52]
[1718948843666,6.6129,133.03,133.02,29.52]
[1718948844065,6.2811,133.06,133.02,29.52]
[1718948844267,6.2811,133.06,133.05,9.52]
[1718948844581,6.2811,133.06,133.05,29.52]
[1718948844781,16.6305,133.07,133.05,30.03]
[1718948844983,16.6305,133.07,133.06,29.52]
[1718948845465,15.47336787,133.07,133.06,29.52]
[1718948847691,6.2811,133.09,133.06,30.03]
[1718948847873,6.2859,133.14,133.08,9.52]
[1718948848187,6.2859,133.14,133.11,9.52]
[1718948848371,6.2859,133.14,133.12,20.0]
[1718948848571,16.37,133.13,133.12,20.0]
[1718948848960,16.37,133.13,133.11,20.0]
[1718948850661,16.37,133.13,133.11,29.52]
[1718948851064,16.37,133.13,133.11,20.0]
[1718948851275,16.37,133.13,133.1,9.52]
[1718948851481,16.37,133.13,133.11,20.0]
[1718948852263,16.37,133.13,133.1,20.0]
[1718948853089,16.37,133.13,133.1,29.52]
[1718948853256,16.37,133.13,133.1,20.0]
[1718948856680,16.37,133.13,133.09,9.52]
[1718948856889,16.37,133.13,133.1,20.0]
[1718948858081,16.37,133.13,133.1,29.52]
[1718948858467,16.37,133.13,133.11,9.52]
[1718948858784,16.37,133.13,133.12,20.0]
[1718948859371,16.37,133.13,133.11,20.0]
[1718948859788,16.37,133.13,133.1,20.0]
[1718948864691,16.37,133.13,133.1,29.52]
[1718948867084,16.37,133.13,133.1,20.0]
[1718948867286,16.37,133.13,133.1,9.52]
[1718948867489,16.37,133.13,133.11,20.0]
[1718948869583,16.37,133.13,133.11,9.52]
[1718948869787,16.37,133.13,133.12,20.0]
[1718948875715,16.37,133.13,133.09,9.52]
[1718948875905,16.37,133.13,133.1,20.0]
[1718948878316,25.89,133.13,133.1,20.0]
[1718948878499,25.89,133.13,133.08,9.52]
[1718948878693,25.89,133.13,133.09,20.0]
[1718948878889,16.37,133.13,133.09,20.0]
[1718948879799,16.37,133.13,133.09,29.52]
[1718948880297,16.37,133.13,133.09,20.0]
[1718948880510,16.37,133.13,133.08,9.52]
[1718948880692,16.37,133.13,133.09,20.0]
[1718948883498,16.37,133.13,133.1,9.52]
[1718948883700,16.37,133.13,133.11,20.0]
[1718948885415,16.37,133.13,133.11,29.52]
[1718948885617,16.37,133.13,133.12,9.52]
[1718948885794,16.37,133.13,133.12,29.52]
[1718948886300,21.9434,133.17,133.12,29.52]
[1718948886621,21.9434,133.17,133.13,9.52]
[1718948886813,21.9434,133.17,133.14,20.0]
[1718948896305,9.52,133.16,133.06,18.5013]
[1718948896518,9.52,133.16,133.1,9.52]
[1718948896725,9.52,133.16,133.11,20.0]
[1718948897834,9.52,133.14,133.11,20.0]
[1718948898005,9.52,133.14,133.08,9.52]
[1718948898205,9.52,133.13,133.09,20.0]
[1718948899326,9.52,133.13,133.03,63.5652]
[1718948899327,25.166,133.12,133.04,20.0]
[1718948899621,15.646,133.12,133.06,9.52]
[1718948899816,25.166,133.12,133.06,9.52]
[1718948900120,9.52,133.1,133.07,20.0]
[1718948900528,9.52,133.09,133.07,20.0]
[1718948900711,9.52,133.09,133.05,20.0]
[1718948900911,9.52,133.09,133.0,56.4161]
[1718948900912,9.52,133.09,133.04,9.52]
[1718948901106,9.52,133.08,133.05,20.0]
[1718948901306,25.3739,133.07,133.01,20.0]
[1718948901717,25.3739,133.07,133.01,9.52]
[1718948901919,25.3739,133.07,133.02,20.0]
[1718948902313,25.3739,133.07,133.02,29.52]
[1718948902814,15.8539,133.07,133.04,9.52]
[1718948903027,15.8539,133.07,133.02,20.0]
[1718948903028,15.8539,133.07,133.05,20.0]
[1718948903329,26.0278,133.1,133.05,9.52]
[1718948903515,26.0278,133.1,133.06,20.0]
[1718948904509,16.5078,133.1,133.06,20.0]
[1718948904708,26.0278,133.1,133.05,9.52]
[1718948904930,26.0278,133.1,133.06,20.0]
[1718948911115,9.52,133.07,133.01,29.52]
[1718948911314,9.52,133.06,133.01,29.52]
[1718948912113,9.52,133.07,133.02,9.52]
[1718948912317,9.52,133.07,133.03,20.0]
[1718948912728,9.52,133.08,133.03,20.0]
[1718948913437,9.52,133.07,133.03,20.0]
[1718948914037,9.52,133.07,133.02,20.0]
[1718948916533,0.17,133.09,133.02,20.0]
[1718948916737,9.52,133.07,133.02,9.52]
[1718948917036,9.52,133.07,133.03,20.0]
[1718948917534,9.52,133.07,132.99,20.0]
[1718948917719,9.52,133.07,133.02,9.52]
[1718948917913,9.52,133.07,133.03,20.0]
[1718948918314,9.52,133.08,133.03,20.0]
[1718948919337,9.52,133.07,133.03,20.0]
[1718948919646,9.52,133.06,133.03,20.0]
[1718948919824,9.52,133.06,133.01,9.52]
[1718948920024,9.52,133.06,133.02,20.0]
[1718948920331,9.52,133.05,133.02,20.0]
[1718948920525,9.52,133.04,133.02,20.0]
[1718948920723,9.52,133.04,133.0,20.0]
[1718948921719,9.52,133.03,132.96,20.0]
[1718948921923,9.52,133.03,132.98,9.52]
[1718948922125,9.52,133.03,132.99,20.0]
[1718948924836,15.5257,133.07,132.99,29.52]
[1718948925140,9.52,133.05,133.0,9.52]
[1718948925324,9.52,133.05,133.01,20.0]
[1718948925520,15.5257,133.07,133.01,20.0]
[1718948925938,15.5257,133.07,133.01,29.52]
[1718948925939,9.52,133.06,133.01,29.52]
[1718948926347,25.0457,133.07,133.01,29.52]
[1718948928234,9.52,133.06,133.01,29.52]
[1718948929140,9.52,133.06,133.01,20.0]
[1718948929455,9.52,133.05,133.01,20.0]
[1718948930632,9.52,133.06,133.01,20.0]
[1718948932731,9.52,133.06,133.01,29.52]
[1718948933253,25.0457,133.07,133.01,29.52]
[1718948934763,15.5257,133.07,133.02,9.52]
[1718948934961,25.0457,133.07,133.03,20.0]
[1718948935459,9.52,133.06,133.03,20.0]
[1718948935669,9.52,133.06,133.0,9.52]
[1718948935877,9.52,133.06,133.01,20.0]